[Event "Turkish Youth Teams U18 2024"]
[Site "Karaman"]
[Date "2024.04.21"]
[Round "3"]
[White "Buyuk, Eymen Eren"]
[Black "Ilgaz, Yusuf Kerem"]
[Result "1/2-1/2"]
[ECO "E53"]
[WhiteElo "1998"]
[BlackElo "1957"]
[Annotator "TA"]
[PlyCount "158"]
[EventDate "2024.04.21"]
[EventType "team-tourn"]
[EventCountry "TUR"]
[SourceTitle "playchess.com"]
[Source "ChessBase"]
[SourceQuality "1"]
[TimeControl "5400+30"]

{[%evp 21,158,8,18,12,13,0,0,0,0,0,10,18,24,37,39,27,20,27,33,34,31,33,41,-17,-13,-12,-4,-51,-63,-39,-49,-72,-41,-53,-66,-73,-69,-72,-76,-65,-19,-19,-16,-25,-32,-32,-38,-38,-34,-59,-43,-54,-22,-64,-43,-52,-20,-63,-25,-54,0,0,0,0,0,0,0,-37,-32,-8,-11,-16,-20,-333,-309,-327,-325,-431,-430,-522,-509,-514,-487,-872,-865,-719,-561,-697,-687,-831,-843,-562,-750,-624,-679,-1060,-887,-29949,-29945,-29954,-29946,-29959,-29958,-29963,-29966,-29964,-29969,-29967,-29967,-29965,-29967,-29966,-29968,-29957,-29955,-29960,-29951,-9343,-8453,-2308,-8,-8,-8,-8,-8,-8,-8,-8,0,-8,-8,-8,-8,-8,-8,-8,-8,-8,-8]} 1. d4 {[%emt 0:01:00]} d5 {[%emt 0:01:00]} 2. c4 {[%emt 0:00:00]} e6 {[%emt 0:00:30]} 3. Nc3 {[%emt 0:00:00]} Bb4 {[%emt 0:00:30]} 4. e3 {[%emt 0:00:30]} c5 {[%emt 0:00:30]} 5. a3 {[%emt 0:02:30]} Bxc3+ {[%emt 0:00:30]} 6. bxc3 {[%emt 0:00:30]} Nf6 {[%emt 0:00:30]} 7. Bd3 {[%emt 0:01:30]} dxc4 {[%emt 0:00:30]} 8. Bxc4 {[%emt 0:00:00]} O-O {[%emt 0:00:30]} 9. Nf3 {[%emt 0:02:00]} Qc7 {[%emt 0:00:00]} 10. Be2 {[%emt 0:04:30]} Nbd7 {[%emt 0:01:00]} 11. O-O {[%emt 0:02:30]} b6 {[%emt 0:00:30]} 12. a4 {[%emt 0:03:30]} Bb7 {[%emt 0:11:30]} 13. Ba3 {[%emt 0:02:30]} Rfd8 {[%emt 0:04:30]} 14. h3 {[%emt 0:04:30]} Rac8 {[%emt 0:04:30][%cal Ba8c8,Bc8c2,Bc2c3][%mdl 32]} 15. Qb3 {[%emt 0:07:30]} cxd4 {[%emt 0:06:30]} 16. cxd4 {[%emt 0:00:30]} Qc2 {[%emt 0:00:30]} 17. Qxc2 {[%emt 0:02:30]} Rxc2 {[%emt 0:00:30]} 18. Bd3 {[%emt 0:00:30]} Rc3 {[%emt 0:00:30]} 19. Rfd1 {[%emt 0:00:30][%cal Oa4a5]} Rdc8 {[%emt 0:08:30]} 20. Bb4 {[%emt 0:07:30] This pair of bishops is nice.} Rb3 {[%emt 0:07:30]} 21. Be1 {[%emt 0:00:30]} h6 {[%emt 0:06:30]} 22. Rab1 {[%emt 0:15:30] [#]} (22. Be2 $14) 22... Rxd3 $1 $11 {[%emt 0:01:30]} 23. Rxd3 {[%emt 0:00:30] aiming for Rdd1.} Be4 {[%emt 0:00:30]} 24. Rdb3 {[%emt 0:00:30]} Bxb1 $15 {[%emt 0:00:30]} 25. Rxb1 {[%emt 0:00:00]} a5 {[%emt 0:02:30]} 26. Rb2 {[%emt 0:11:00] Inhibits Rc2.} Rc1 {[%emt 0:03:30]} 27. Ra2 {[%emt 0:03:30]} Ne4 {[%emt 0:04:30]} 28. Kf1 {[%emt 0:12:10]} Ndf6 {[%emt 0:03:30]} 29. Ke2 {[%emt 0:02:30]} Nd5 {[%emt 0:00:30]} 30. Ra3 {[%emt 0:00:55]} Rb1 {[%emt 0:07:30]} (30... f6 $15 {is superior.}) 31. Kd3 $11 {[%emt 0:02:55]} Ng5 {[%emt 0:04:30]} 32. Nxg5 {[%emt 0:01:30] [#] Strongly threatening Nf3.} Rxe1 {[%emt 0:00:56][%mdl 4096] Endgame. KRN-KRN} 33. Nf3 {[%emt 0:00:39]} Rb1 {[%emt 0:00:51]} 34. Nd2 {[%emt 0:04:33]} Rb2 {[%emt 0:02:26]} 35. f3 {[%emt 0:04:22]} Kf8 {[%emt 0:02:15]} 36. Ke2 {[%emt 0:01:06]} Ke7 {[%emt 0:01:54]} 37. Kd1 {[%emt 0:00:07]} Nb4 {[%emt 0:01:21]} 38. g3 {[%emt 0:00:35]} Rc2 {[%emt 0:01:37]} 39. e4 {[%emt 0:00:30]} Kd6 {[%emt 0:00:30]} 40. Rb3 {[%emt 0:01:43][%cal Ob3b4] Rxb4! would now be deadly.} Ra2 {[%emt 0:04:47]} (40... Rc6 $15) 41. Ra3 {[%emt 0:00:30]} Rxa3 {[%emt 0:01:59]} 42. Nc4+ {[%emt 0:00:05]} Kc6 {[%emt 0:00:30]} 43. Nxa3 {[%emt 0:00:00] KN-KN} Nd3 {[%emt 0:00:00]} 44. Nc4 {[%emt 0:00:10]} b5 {[%emt 0:03:26]} 45. axb5+ {[%emt 0:00:30]} (45. Nxa5+ Kb6 46. Kd2 Kxa5 $19) 45... Kxb5 {[%emt 0:00:30]} 46. Nd6+ {[%emt 0:00:30]} Kb4 {[%emt 0:00:30]} 47. Kc2 $2 {[%emt 0:01:31][%mdl 8192] Against a4} (47. Kd2 $1 $11 Nf2 48. Nxf7 Nxh3 49. d5 exd5 50. exd5) 47... Ne1+ $19 {[%emt 0:00:00]} 48. Kb2 {[%emt 0:00:21]} Nxf3 {[%emt 0:00:24]} 49. Nxf7 {[%emt 0:00:30]} Nxd4 {[%emt 0:00:00]} 50. h4 {[%emt 0:00:39]} a4 {[%emt 0:00:20]} 51. Ne5 {[%emt 0:00:30]} Ne2 {[%emt 0:02:12]} 52. Nc6+ {[%emt 0:00:39]} (52. g4 $142 Kc5 53. Nd7+ Kd4 54. Ka2) 52... Kc5 {[%emt 0:00:30]} 53. Nd8 {[%emt 0:00:09]} Kd6 {[%emt 0:01:06]} 54. g4 {[%emt 0:00:30]} Ng3 {[%emt 0:00:00]} 55. Ka3 {[%emt 0:00:42]} Nxe4 {[%emt 0:00:59]} 56. Kxa4 {[%emt 0:00:08]} Ke7 {[%emt 0:01:13]} 57. Nc6+ {[%emt 0:00:45]} Kf6 {[%emt 0:00:02] Hoping for ...g5.} 58. Nd4 {[%emt 0:00:09]} g5 {[%emt 0:01:43]} 59. hxg5+ {[%emt 0:00:52]} hxg5 {[%emt 0:00:01]} 60. Kb3 {[%emt 0:00:17]} Ke5 {[%emt 0:00:40]} 61. Ne2 {[%emt 0:00:32]} Nf2 {[%emt 0:00:14]} 62. Kc2 {[%emt 0:00:14]} Ke4 {[%emt 0:00:30]} 63. Kd2 {[%emt 0:00:00]} Nxg4 {[%emt 0:00:09]} 64. Ng1 {[%emt 0:00:28]} Nh2 {[%emt 0:01:36]} 65. Ke2 {[%emt 0:00:30]} g4 {[%emt 0:01:10]} 66. Kf2 {[%emt 0:00:04]} Nf3 {[%emt 0:00:00]} 67. Ne2 {[%emt 0:00:26]} e5 {[%emt 0:00:21]} 68. Kg3 {[%emt 0:01:04]} Kf5 {[%emt 0:00:46]} 69. Nc3 {[%emt 0:00:52]} Nd2 {[%emt 0:00:52]} 70. Nd5 {[%emt 0:00:41]} Ne4+ $2 {[%emt 0:00:00]} (70... Kg5 $19 {...Ne4+ is the strong threat.} 71. Nc3 Kh5) 71. Kh4 $1 $11 {[%emt 0:00:58] The position is equal.} g3 {[%emt 0:01:14] ( -> ...Nf6)} 72. Kh3 {[%emt 0:00:08]} Kg5 {[%emt 0:00:06]} 73. Kg2 $1 {[%emt 0:00:12]} Kg4 {[%emt 0:01:06] White must now prevent ...Nd6.} (73... Kh4 $5 74. Ne7 $8 Kg5 $11) 74. Ne3+ {[%emt 0:00:04]} Kg5 {[%emt 0:00:07]} 75. Kf3 {[%emt 0:00:24]} Nf6 {[%emt 0:00:34]} 76. Kxg3 {[%emt 0:00:17]} Nd7 {[%emt 0:00:30]} 77. Kf3 {[%emt 0:00:30]} Kf6 {[%emt 0:00:30]} 78. Ng4+ {[%emt 0:00:00]} Ke6 {[%emt 0:00:00]} 79. Nxe5 {[%emt 0:00:10]} Kxe5 {[%emt 0:00:00] Black had all chances to win.   Weighted Error Value: White=0.54/Black=0.08 (flawless) .  Loses game:     	White=1     	---        Mistake:       	White=3     	Black=2      Inaccurate:     	White=5     	Black=3      OK:         	White=21    	Black=20     Best:        	White=4     	Black=6      Strong:       	White=1     	---} 1/2-1/2

[Event "Turkish Youth Teams U18 2024"]
[Site "Karaman"]
[Date "2024.04.21"]
[Round "3"]
[White "Orhon, Bora"]
[Black "Arslan, Muhammed Emin"]
[Result "1-0"]
[ECO "B22"]
[WhiteElo "1997"]
[BlackElo "2251"]
[Annotator "TA"]
[PlyCount "93"]
[EventDate "2024.04.21"]
[EventType "team-tourn"]
[EventCountry "TUR"]
[SourceTitle "playchess.com"]
[Source "ChessBase"]
[SourceQuality "1"]
[TimeControl "5400+30"]

{[%evp 9,93,-5,-6,-8,19,20,12,14,44,63,62,49,56,52,58,52,64,58,60,52,98,93,101,86,81,82,93,93,91,95,92,87,103,96,96,95,96,91,96,93,104,103,109,108,138,134,146,114,173,168,202,205,237,232,231,0,224,198,255,249,260,224,334,321,345,320,413,406,642,606,1871,1939,29977,29978,29978,29979,29979,29980,29980,29981,29982,29983,29983,29984,29984,29985]} 1. e4 {[%emt 0:01:00]} c5 {[%emt 0:04:00]} 2. c3 {[%emt 0:00:30]} g6 {[%emt 0:00:30]} 3. d4 {[%emt 0:00:00]} cxd4 {[%emt 0:00:30]} 4. cxd4 {[%emt 0:00:00]} d5 {[%emt 0:00:00]} 5. Nc3 {[%emt 0:02:30]} dxe4 {[%emt 0:01:00]} 6. Bc4 {[%emt 0:01:30][%cal Og1e2]} Bg7 {[%emt 0:05:30]} 7. Qb3 {[%emt 0:00:30]} e6 {[%emt 0:03:30]} 8. d5 {[%emt 0:00:30][%cal Rd5e6] Against Nc6. The position is equal.} Nf6 {[%emt 0:09:30]} 9. dxe6 {[%emt 0:01:30]} fxe6 {[%emt 0:09:30]} 10. Bxe6 {[%emt 0:18:30]} Bxe6 {[%emt 0:01:30]} 11. Qxe6+ {[%emt 0:00:30]} Qe7 {[%emt 0:00:00]} 12. Qxe7+ {[%emt 0:03:30]} Kxe7 {[%emt 0:00:00]} 13. Bg5 {[%emt 0:01:30]} Nbd7 {[%emt 0:06:30]} 14. Nxe4 {[%emt 0:05:30]} Rhe8 {[%emt 0:07:30]} (14... Rac8 $14 {might be stronger.}) 15. O-O-O $16 {[%emt 0:03:30] White is more active.} Kf8 {[%emt 0:06:30]} 16. Nxf6 {[%emt 0:17:30]} Nxf6 {[%emt 0:01:30]} 17. Nf3 {[%emt 0:03:30]} Rac8+ {[%emt 0:08:30]} 18. Kb1 {[%emt 0:00:30]} Re2 {[%emt 0:02:30]} 19. Rd2 {[%emt 0:04:30]} Rce8 {[%emt 0:07:30]} 20. Rhd1 {[%emt 0:14:37]} Rxd2 {[%emt 0:07:08]} 21. Bxd2 {[%emt 0:04:24]} ({But not} 21. Nxd2 Re2 $11) 21... Re2 {[%emt 0:06:55]} 22. Bb4+ {[%emt 0:02:13]} Ke8 {[%emt 0:01:01][%cal Of6e4]} 23. Re1 {[%emt 0:06:04]} Rxe1+ {[%emt 0:01:20]} 24. Bxe1 {[%emt 0:00:09][%mdl 4096] Endgame. KBN-KBN} Nd5 {[%emt 0:00:00]} 25. Bd2 {[%emt 0:00:53]} Kd7 {[%emt 0:00:26]} 26. Kc2 {[%emt 0:00:16]} h6 {[%emt 0:04:18]} 27. b3 {[%emt 0:00:30]} g5 {[%emt 0:00:30]} 28. h3 {[%emt 0:02:33]} Kd6 {[%emt 0:04:15]} (28... Ke6 $16 {was called for.} 29. g3 a6) 29. Kd3 $18 {[%emt 0:01:24]} Ke6 {[%emt 0:01:55]} 30. g4 {[%emt 0:00:55]} a6 {[%emt 0:00:55]} 31. Nd4+ {[%emt 0:02:53]} Ke5 {[%emt 0:00:30]} 32. Nf3+ {[%emt 0:00:30]} Ke6 {[%emt 0:00:30]} 33. h4 {[%emt 0:00:37]} gxh4 {[%emt 0:00:08]} (33... Nf6 $142) 34. Nxh4 {[%emt 0:00:04]} Nf6 {[%emt 0:00:55]} 35. Bc3 {[%emt 0:00:30]} Bf8 {[%emt 0:00:27]} (35... Ne8 $142 36. Bxg7 Nxg7) 36. Bxf6 {[%emt 0:01:34]} Kxf6 {[%emt 0:00:01] KB-KN} 37. f4 {[%emt 0:00:04]} Ba3 {[%emt 0:00:42]} 38. Ke4 {[%emt 0:00:14]} Bb4 {[%emt 0:00:54]} (38... Ke6 $142 39. Nf5 Bf8 40. Nd4+ Kf6) 39. Nf5 {[%emt 0:00:42]} Bf8 {[%emt 0:00:52] [#]} 40. Nxh6 $1 {[%emt 0:00:30][%mdl 512]} Bxh6 {[%emt 0:00:30]} (40... Kg7 41. Nf5+) 41. g5+ {[%emt 0:00:30] White mates.} Bxg5 {[%emt 0:00:30]} 42. fxg5+ {[%emt 0:00:30]} Kxg5 {[%emt 0:00:30] KPP-KPP} 43. Kd5 {[%emt 0:00:30]} Kf5 {[%emt 0:00:30]} 44. Kc5 {[%emt 0:00:30]} Ke5 {[%emt 0:00:30]} 45. Kb6 {[%emt 0:00:30]} Kd5 {[%emt 0:00:30]} 46. Kxb7 {[%emt 0:00:30]} a5 {[%emt 0:00:30]} 47. Kb6 {[%emt 0:00:00] Weighted Error Value: White=0.10 (very precise) /Black=0.41.  Mistake:       	---       	Black=5      Inaccurate:     	---       	Black=3      OK:         	White=11    	Black=5      Best:        	White=4     	Black=2} 1-0

[Event "Turkish Youth Teams U18 2024"]
[Site "Karaman"]
[Date "2024.04.21"]
[Round "3"]
[White "Senel, Hayri Beyhun"]
[Black "Simsek, Ayaz"]
[Result "1-0"]
[ECO "A08"]
[WhiteElo "1961"]
[BlackElo "1867"]
[Annotator "TA"]
[PlyCount "159"]
[EventDate "2024.04.21"]
[EventType "team-tourn"]
[EventCountry "TUR"]
[SourceTitle "playchess.com"]
[Source "ChessBase"]
[SourceQuality "1"]
[TimeControl "5400+30"]

{[%evp 33,159,-17,-13,-19,-11,-1,0,-3,-1,-33,-30,-39,-20,-25,-15,-28,0,0,0,-22,0,0,37,28,61,0,0,0,0,0,0,0,0,0,0,-260,-14,-255,-240,-417,-414,-549,-539,-719,-148,-132,-58,-54,-68,-168,-52,-54,-55,-295,-293,-280,-247,-233,0,-391,-390,-395,-393,-372,0,0,0,0,0,-146,0,0,294,287,972,0,0,0,0,0,0,0,0,0,0,0,0,8,8,0,0,0,0,0,108,108,29957,8456,29961,29960,29961,29961,6099,6056,29988,29989,29989,29990,29991,29990,29990,29986,29986,29981,29981,29982,29982,29983,29983,29984,29984,29984,29984,29985,29985,29986,29986,29985]} 1. Nf3 {[%emt 0:06:00]} d5 {[%emt 0:01:00]} 2. g3 {[%emt 0:00:30]} Nf6 {[%emt 0:00:30]} 3. Bg2 {[%emt 0:00:00]} g6 {[%emt 0:00:30]} 4. d3 {[%emt 0:00:00]} Bg7 {[%emt 0:00:30]} 5. O-O {[%emt 0:00:30]} O-O {[%emt 0:00:30]} 6. c3 {[%emt 0:00:00]} c5 {[%emt 0:00:30]} 7. Bf4 {[%emt 0:02:00] A08: King's Indian Attack.} Nc6 {[%emt 0:12:30]} 8. Ne5 {[%emt 0:00:30]} Nxe5 {[%emt 0:14:30]} 9. Bxe5 {[%emt 0:00:30]} Nh5 $146 {[%emt 0:03:30]} ({Predecessor:} 9... Be6 10. Nd2 Qd7 11. b4 cxb4 12. cxb4 Bh3 13. Qb3 Bxg2 14. Kxg2 Ng4 15. Bxg7 Kxg7 {1-0 Ozen,B (2369)-Skliarov,V (2384) Titled Tuesday intern op 22nd Nov Early blitz 2022 (3)}) 10. Bxg7 {[%emt 0:01:30]} Kxg7 {[%emt 0:10:30]} 11. Qb3 {[%emt 0:06:30]} Nf6 {[%emt 0:02:30]} 12. c4 {[%emt 0:10:30]} d4 {[%emt 0:05:30]} 13. Nd2 {[%emt 0:04:30]} Qc7 {[%emt 0:09:30]} 14. a3 {[%emt 0:08:30]} Bd7 {[%emt 0:08:30]} 15. Qc2 {[%emt 0:11:30]} Bc6 {[%emt 0:05:30]} 16. b4 {[%emt 0:04:30]} Bxg2 {[%emt 0:01:30]} 17. Kxg2 {[%emt 0:00:00]} b6 {[%emt 0:00:30]} 18. Rab1 {[%emt 0:03:00]} Qc6+ {[%emt 0:04:07]} 19. Kg1 {[%emt 0:00:00]} Rfb8 {[%emt 0:02:57]} 20. bxc5 {[%emt 0:10:00]} bxc5 {[%emt 0:00:44]} 21. Rb2 {[%emt 0:01:30]} Rb6 {[%emt 0:01:15]} 22. Rfb1 {[%emt 0:04:30]} h5 {[%emt 0:02:30]} 23. h4 {[%emt 0:01:30]} Rab8 {[%emt 0:01:41]} 24. Rxb6 {[%emt 0:07:06]} (24. Kh2 {is interesting.} Qe6 25. Nf3 Qd7 26. Qc1) 24... Rxb6 {[%emt 0:00:21]} 25. Rxb6 {[%emt 0:03:59]} axb6 {[%emt 0:01:07]} 26. Nf3 {[%emt 0:03:26]} Ng4 {[%emt 0:02:14]} 27. Qb3 {[%emt 0:05:15]} e5 {[%emt 0:02:03]} 28. Qb5 {[%emt 0:02:01]} Qa8 {[%emt 0:01:08]} 29. a4 {[%emt 0:00:59]} (29. Qxb6 $14 e4 30. dxe4 Qxa3 31. Kg2) 29... e4 $11 {[%emt 0:01:11]} 30. Ng5 {[%emt 0:03:27]} exd3 {[%emt 0:01:14]} 31. exd3 {[%emt 0:00:30]} Qb7 {[%emt 0:02:18]} 32. Qe8 {[%emt 0:00:18]} Qc7 {[%emt 0:00:30]} 33. Qe4 {[%emt 0:01:24]} Qd7 {[%emt 0:01:52]} 34. Qa8 $2 {[%emt 0:00:40][%mdl 8192]} (34. Kf1 $11) 34... Qf5 $2 {[%emt 0:00:30]} (34... Ne5 $19 35. a5 (35. Qe4 $2 Qf5 $19) 35... bxa5 (35... Nxd3 $2 36. axb6 Qf5 37. Qg2 $18) 36. Qxa5 Nxd3) 35. Qf3 $2 {[%emt 0:00:19]} (35. Ne4 $1 $11 {and White is okay.}) 35... Ne5 $1 $19 {[%emt 0:00:44]} 36. Qb7 $2 {[%emt 0:01:01]} (36. Qxf5 gxf5 37. Nh3 Nxd3 38. Kf1) 36... Nxd3 $19 {[%emt 0:00:16]} (36... Qxd3 37. Ne6+ Kf6 38. Nf4 Qb1+ (38... Qxc4 39. Qxb6+ Kg7 40. Qd6 $17) 39. Kg2 $19) 37. f3 {[%emt 0:00:04]} Ne5 {[%emt 0:00:58]} 38. Qd5 {[%emt 0:00:18]} d3 $2 {[%emt 0:01:20]} (38... Qb1+ $19 39. Kg2 Qb2+ 40. Kh3 d3 (40... Qe2 $2 41. f4 $19)) 39. Kf1 $17 {[%emt 0:00:31]} Ng4 {[%emt 0:00:40]} (39... Qf6 $17 40. Qe4 Nd7) 40. Qxf5 $1 $15 {[%emt 0:00:30]} Ne3+ {[%emt 0:00:30]} 41. Ke1 {[%emt 0:00:30]} (41. Kf2 $1 $15 Nxf5 42. Ne4) 41... Nxf5 {[%emt 0:00:30]} ({Black should try} 41... gxf5 $19 42. Kd2 Nxc4+ 43. Kxd3 Nb2+ 44. Kc3 Nxa4+ 45. Kb3 b5) 42. Ne4 $1 $15 {[%emt 0:00:30]} Nd4 {[%emt 0:00:30]} 43. Kd2 $2 {[%emt 0:00:30]} (43. Kf2 $1 $15) 43... Nxf3+ $19 {[%emt 0:00:00]} 44. Kxd3 {[%emt 0:00:06]} Ne5+ {[%emt 0:00:11]} 45. Kc3 {[%emt 0:00:01]} Kf8 $2 {[%emt 0:00:46]} (45... g5 $1 $19 {...gxh4 would now be deadly.} 46. Nxg5 Kg6) 46. Nd6 $2 {[%emt 0:00:40][%mdl 8192]} (46. Nf6 $11) 46... Nd7 $1 $19 {[%emt 0:00:30]} 47. Kd3 {[%emt 0:00:30]} Ke7 {[%emt 0:00:30]} 48. Nc8+ {[%emt 0:00:30]} Ke6 $2 {[%emt 0:00:30]} (48... Kf6 $1 $19 {Threatens to win with ...Kf5.} 49. Ke4 Ke6) 49. Ke4 $11 {[%emt 0:00:30]} f6 {[%emt 0:00:30]} 50. Kf4 {[%emt 0:00:30]} Kf7 {[%emt 0:00:30]} 51. Nd6+ {[%emt 0:00:30]} (51. Ke4 $11 {remains equal.} Ke6 52. Kf4) 51... Kg7 {[%emt 0:00:30]} (51... Ke7 $1 $17 {[%cal Re7d6]} 52. Nb7 Ne5) 52. Nc8 {[%emt 0:00:30]} Kh6 $2 {[%emt 0:00:22][%mdl 8192]} (52... Kf7 $11 {and Black has nothing to worry.} 53. Ke4 Ke6) 53. Ke4 $18 {[%emt 0:00:00]} Kg7 $2 {[%emt 0:00:56]} (53... f5+ 54. Kf4 (54. Kd5 g5 $16) 54... Kg7) 54. Kf4 $2 {[%emt 0:00:00]} ({Only move:} 54. Kd5 $18 Kf7 55. Kd6 (55. Kc6 Ne5+ 56. Kd5 Nd3 $18)) 54... Kf7 {[%emt 0:00:25]} 55. Ke4 {[%emt 0:00:41]} Ke6 {[%emt 0:01:04]} 56. Kf4 {[%emt 0:00:30]} g5+ {[%emt 0:00:00]} 57. hxg5 {[%emt 0:00:19]} fxg5+ {[%emt 0:00:10]} 58. Kxg5 {[%emt 0:00:00]} Ke5 {[%emt 0:00:05]} 59. Kxh5 {[%emt 0:00:59]} Kd4 {[%emt 0:00:00]} 60. Nd6 {[%emt 0:00:26]} Ke5 $1 {[%emt 0:00:43]} (60... Ne5 $2 61. g4 Nd7 (61... Nxc4 62. Nxc4 Kxc4 63. g5 Kd4 64. g6 c4 65. g7 c3 66. g8=Q) 62. g5 $18) 61. Nc8 {[%emt 0:00:02]} Kd4 {[%emt 0:00:21]} 62. g4 {[%emt 0:02:37]} Kxc4 {[%emt 0:00:54]} 63. g5 {[%emt 0:00:04]} Kd5 {[%emt 0:00:00]} (63... Kd4 $11) 64. g6 $16 {[%emt 0:00:59]} Ke6 $2 {[%emt 0:01:04][%mdl 8192] [#]} (64... Kc6 $16) 65. g7 $1 {[%emt 0:00:11]} Nf6+ {[%emt 0:00:46]} 66. Kg6 {[%emt 0:01:20]} c4 {[%emt 0:00:30]} 67. Nxb6 {[%emt 0:00:30]} c3 {[%emt 0:00:47] [#]} 68. Nd5 $1 {[%emt 0:00:00]} c2 {[%emt 0:00:06]} 69. Nxf6 {[%emt 0:00:05]} c1=Q {[%emt 0:00:21]} 70. g8=Q+ {[%emt 0:00:09]} (70. g8=R Qc2+ 71. Kg5 Qf5+ (71... Qxa4 72. Ng4 $15) 72. Kh4 Qxf6+ $19 (72... Kxf6 73. Rf8+ Kg6 74. Rxf5 Kxf5 75. a5 Kf6 76. a6 Kf7 77. a7)) 70... Kd6 {[%emt 0:00:15]} 71. Qb8+ {[%emt 0:00:00]} Ke6 {[%emt 0:00:31]} 72. Qb6+ {[%emt 0:00:20]} Ke5 {[%emt 0:00:22]} 73. Nd7+ {[%emt 0:00:54]} Ke4 {[%emt 0:00:16]} 74. Qe6+ {[%emt 0:00:13]} Kd4 {[%emt 0:00:30]} 75. Qe5+ {[%emt 0:00:30]} Kd3 {[%emt 0:00:00]} 76. Qd5+ {[%emt 0:00:00]} Ke2 {[%emt 0:00:01]} 77. Qe4+ {[%emt 0:00:33]} Kf2 {[%emt 0:00:12]} 78. Ne5 {[%emt 0:00:33]} Qc7 {[%emt 0:00:49]} 79. Nd3+ {[%emt 0:00:22]} Kg1 {[%emt 0:00:25]} 80. Qg4+ {[%emt 0:00:27]} 1-0

[Event "Turkish Youth Teams U18 2024"]
[Site "Karaman"]
[Date "2024.04.21"]
[Round "3"]
[White "Yildiz, Elif Zeren"]
[Black "Ozgor, Ezel"]
[Result "1-0"]
[ECO "C02"]
[WhiteElo "1926"]
[BlackElo "1741"]
[Annotator "TA"]
[PlyCount "87"]
[EventDate "2024.04.21"]
[EventType "team-tourn"]
[EventCountry "TUR"]
[SourceTitle "playchess.com"]
[Source "ChessBase"]
[SourceQuality "1"]
[TimeControl "5400+30"]

{[%evp 15,87,-23,43,37,47,48,48,56,110,94,103,100,122,118,119,93,108,110,107,94,108,82,122,86,156,140,132,116,140,110,167,109,205,173,246,243,347,345,339,377,344,241,239,223,299,227,231,240,557,520,812,778,1650,841,5912,5908,4914,5916,29957,29960,8043,5010,29981,29982,29982,29955,5732,5716,4806,2320,1730,1570,5326,6119]} 1. e4 {[%emt 0:01:00][%cal Be2e4,Be4e5][%mdl 32]} c5 {[%emt 0:01:00]} 2. Nf3 {[%emt 0:00:30]} e6 {[%emt 0:00:30]} 3. c3 {[%emt 0:00:30]} d5 {[%emt 0:00:30]} 4. e5 {[%emt 0:00:00]} Nc6 {[%emt 0:01:30]} 5. d4 {[%emt 0:00:00]} cxd4 {[%emt 0:00:00]} 6. cxd4 {[%emt 0:00:00]} Qb6 {[%emt 0:00:00]} 7. Bd3 {[%emt 0:02:00]} Bd7 {[%emt 0:00:30]} 8. Bc2 {[%emt 0:00:30]} Rc8 {[%emt 0:03:30]} (8... Nb4 $11) 9. Nc3 $14 {[%emt 0:00:30]} Nb4 {[%emt 0:04:30]} 10. Bb1 {[%emt 0:02:30]} Ne7 {[%emt 0:03:30]} 11. O-O {[%emt 0:01:30] White is slightly better.} Nec6 {[%emt 0:03:30]} ({Black should try} 11... Nbc6 $14) 12. a3 $16 {[%emt 0:01:30]} Na6 {[%emt 0:00:30]} 13. Na4 {[%emt 0:02:30]} Qd8 {[%emt 0:01:30]} 14. b4 {[%emt 0:01:30] Repels Na5. Strongly threatening b5.} b5 {[%emt 0:02:30]} 15. Nc5 {[%emt 0:02:30]} Nxc5 {[%emt 0:01:30]} 16. bxc5 {[%emt 0:00:30]} Be7 {[%emt 0:01:30]} 17. Bd3 {[%emt 0:06:30]} a6 {[%emt 0:03:30]} 18. Re1 {[%emt 0:03:30]} g5 {[%emt 0:02:30]} 19. Bb2 {[%emt 0:01:30][%cal Bc1b2,Bb2c3,Bc3a5][%mdl 32]} Na5 {[%emt 0:03:30]} (19... g4 $142) 20. Nd2 {[%emt 0:02:30]} h5 {[%emt 0:08:30]} 21. Bc3 {[%emt 0:03:30][%cal Oa3a4] White is more active.} Nc4 {[%emt 0:03:30]} 22. Nb3 {[%emt 0:03:30]} Bc6 {[%emt 0:01:30] [#]} (22... Rb8 $16) 23. Re2 {[%emt 0:06:30]} ({Better is} 23. a4 $1 $18) 23... Kd7 {[%emt 0:06:30]} (23... Rb8 $16) 24. Qe1 {[%emt 0:00:30]} Rh6 {[%emt 0:01:30]} (24... Rb8 {is a better defense.} 25. Na5 Nxa5) 25. Na5 $18 {[%emt 0:06:30]} Nxa5 {[%emt 0:04:30]} (25... Ba8 {keeps fighting.} 26. a4 Ke8 27. axb5 axb5) 26. Bxa5 {[%emt 0:00:00]} Qg8 {[%emt 0:01:30] [#]} 27. a4 $1 {[%emt 0:07:00][%mdl 512]} bxa4 {[%emt 0:03:30]} 28. Bxa6 {[%emt 0:00:30]} Ra8 {[%emt 0:00:00]} 29. Bd3 {[%emt 0:00:00][%cal Ba6d3,Bd3b5,Bb5a4][%mdl 32]} f6 {[%emt 0:03:00]} 30. Qb4 {[%emt 0:04:00]} Qb8 {[%emt 0:08:30]} 31. Bb6 {[%emt 0:01:30]} Bd8 $2 {[%emt 0:07:30]} (31... g4 {is a better chance.} 32. Rea2 (32. Bb5 $2 Qxb6 33. Bxc6+ Qxc6 $19) 32... fxe5) 32. Bb5 {[%emt 0:06:30]} Qb7 {[%emt 0:09:42]} (32... Bxb5 $142 33. Qxb5+ Ke7 34. Bxd8+ (34. Rxa4 Bxb6 35. cxb6 Rxa4 $11) 34... Kxd8) 33. Bxa4 {[%emt 0:00:30]} Bxb6 {[%emt 0:00:40]} 34. cxb6 {[%emt 0:00:30]} fxe5 {[%emt 0:05:07]} 35. dxe5 {[%emt 0:01:30] Qd6+ would kill now.} Rxa4 {[%emt 0:01:51]} 36. Rxa4 {[%emt 0:00:30]} Bxa4 {[%emt 0:00:20]} 37. Qxa4+ {[%emt 0:00:30] KQR-KQR} Kd8 {[%emt 0:00:58]} 38. Qb4 {[%emt 0:00:00]} Qe7 {[%emt 0:02:00]} 39. Qa5 {[%emt 0:01:00]} Qb7 {[%emt 0:01:38]} 40. Rc2 {[%emt 0:01:30]} Rh7 {[%emt 0:00:44]} 41. Qc5 {[%emt 0:00:00] White threatens Qd6+ and mate. White is clearly winning.} Re7 {[%emt 0:00:41]} 42. Qd6+ {[%emt 0:00:00]} (42. Ra2 $142 Qc8 43. Qxc8+ Kxc8 44. Ra8+ Kb7 45. Ra7+ Kxb6 46. Rxe7) 42... Ke8 {[%emt 0:00:30]} 43. h3 {[%emt 0:00:30]} h4 {[%emt 0:00:56]} 44. Kh2 {[%emt 0:02:30] White took control after the opening.   Weighted Error Value: White=0.24 (precise) /Black=0.73.  Mistake:       	White=1     	Black=8      Inaccurate:     	---       	Black=3      OK:         	White=8     	Black=7      Best:        	White=3     	---} 1-0